Cogmind - Beta 16.1 @@@ ROGUE MODE // 2026.02.25 @ 18:26:56 // Winter2022/Polymind Player: FAQ Result: Self-destructed Performance ------------- Evolutions (1) 500 Regions Visited (4) 800 Robots Destroyed (0) 0 Value Destroyed (0) 0 Prototype IDs (0) 0 Alien Tech Used (0) 0 Bonus (1730) 1730 TOTAL SCORE: 2230 Bonus ------- Polymind Skill 1530 Pacifist 200 Cogmind --------- Core Integrity 184/400 Matter 0/0 Energy 99/100 System Corruption 0% Temperature Cool (0) Movement Core (50) Location -9/Mines Parts ------- > --- POWER (1) -------- (None) > --- PROPULSION (2) --- (None) > --- UTILITY (0) ------ (None) > --- WEAPON (1) ------- (None) > --- INVENTORY (0) ---- (None) Peak State ------------ > --- POWER ------------ Light Ion Engine > --- PROPULSION ------- Wheel Wheel > --- UTILITY ---------- Structural Scanner Terrain Scanner Terrain Scan Processor > --- WEAPON ----------- Welding Torch > --- INVENTORY -------- (None) [Rating: 8] Favorites ----------- Power Light Ion Engine Engine Light Ion Engine Propulsion Flight Unit Wheel Wheel Flight Unit Flight Unit Utility Structural Scanner Device Structural Scanner Processor Terrain Scan Processor Weapon Light Assault Rifle Ballistic Gun Light Assault Rifle Special Weapon Welding Torch Build | -11 -10 -10 -9 -9 ------- Run | Yrd Mat Min Mat Min Slots Evolved . | . . . . . Power . | . . . . . Propulsion . | . . . . . Utility . | . . . . . Weapon . | . . . . . Parts Attached . | . . . . . Power . | . . . . . Engine . | . . . . . Core . | . . . . . Reactor . | . . . . . Propulsion . | . . . . . Treads . | . . . . . Leg . | . . . . . Wheel . | . . . . . Hover . | . . . . . Flight . | . . . . . Utility . | . . . . . Device . | . . . . . Storage . | . . . . . Processor . | . . . . . Hackware . | . . . . . Protection . | . . . . . Artifact . | . . . . . Weapon . | . . . . . Energy Gun . | . . . . . Energy Cannon . | . . . . . Ballistic Gun . | . . . . . Ballistic Cannon . | . . . . . Launcher . | . . . . . Special Weapon . | . . . . . Impact Weapon . | . . . . . Slashing Weapon . | . . . . . Piercing Weapon . | . . . . . Special Melee Weapon . | . . . . . Unidentified Prototypes . | . . . . . Parts Lost 4 | . . . . 4 Power 1 | . . . . 1 Propulsion 2 | . . . . 2 Utility . | . . . . . Weapon 1 | . . . . 1 Highest Loss Streak 3 | . . . . 3 To Critical Strikes . | . . . . . Average Backups . | . . . . . Power . | . . . . . Propulsion . | . . . . . Utility . | . . . . . Weapon . | . . . . . Tool/Special . | . . . . . Unused Backups . | . . . . . Power . | . . . . . Propulsion . | . . . . . Utility . | . . . . . Weapon . | . . . . . Tool/Special . | . . . . . Average Slot Usage (%) 57 | . 33 100 42 62 Engine 13 | . 4 14 10 17 Wheel 4 | . 9 28 . . Flight 17 | . . . 21 26 Device 4 | . 9 28 . . Processor 2 | . 4 14 . . Ballistic Gun 11 | . . . 10 17 Special Weapon 2 | . 4 14 . . Peak Build Rating 8 | . 8 8 4 4 Average Rating 3 | . 3 7 1 2 On Entrance 2 | . . 8 . 4 Avg Prop Armor Cover (%) . | . . . . . Naked Turns 186 | . 71 1 29 85 Heaviest Build 6 | . 6 6 4 4 Greatest Support 20 | 3 20 20 8 8 Greatest Overweight (x) . | . . . . . Average Overweight (x) . | . . . . . Largest Inventory Capacity . | . . . . . Average Capacity . | . . . . . Most Carried . | . . . . . Average Carried . | . . . . . Final Capacity . | . . . . . Final Carried . | . . . . . Class Distribution -------------------- 47% | Swarmer 34% | Cogmind 17% | Builder Dominant Class ---------------- Cogmind | -10/Materials Builder | -10/Mines Cogmind | -9/Materials Swarmer | -9/Mines Resources | -11 -10 -10 -9 -9 ----------- Run | Yrd Mat Min Mat Min Matter Collected 1 | . . . . 1 Remotely . | . . . . . Salvage Created . | . . . . . Parts . | . . . . . Haulers Intercepted . | . . . . . Recyclers Shooed . | . . . . . Parts Field Recycled . | . . . . . Retrieved Matter . | . . . . . Parts Self-Destructed . | . . . . . Prevented . | . . . . . Parts Restored . | . . . . . Kills | -11 -10 -10 -9 -9 ------- Run | Yrd Mat Min Mat Min Combat Hostiles Destroyed . | . . . . . Classes Destroyed . | . . . . . Best Kill Streak . | . . . . . Combat Bots Only . | . . . . . Max Kills in Single Turn . | . . . . . Gunslinging . | . . . . . Exploded . | . . . . . Melee . | . . . . . Uniques/NPCs Destroyed . | . . . . . Combat | -11 -10 -10 -9 -9 -------- Run | Yrd Mat Min Mat Min Hostile Shots Fired 52 | . 7 1 11 33 Missed 31 | . 5 1 7 18 Hits 21 | . 2 . 4 15 Melee 1 | . . . . 1 Projectile 20 | . 2 . 4 14 AOE 4 | . . . . 4 Damage Taken 398 | . 21 . 70 307 Core 225 | . 9 . 42 174 Absorbed by Shields . | . . . . . Core Remaining (%) 98 | 100 . 96 . . Volleys Fired 2 | . . . . 2 Largest 1 | . . . . 1 Hottest 20 | . . . . 20 Shots Fired 2 | . . . . 2 Gun 2 | . . . . 2 Cannon . | . . . . . Launcher . | . . . . . Special . | . . . . . Kinetic 2 | . . . . 2 Thermal . | . . . . . Explosive . | . . . . . Electromagnetic . | . . . . . Robot Hit Streak 2 | . . . . 2 Robot Miss Streak . | . . . . . Penetration Max . | . . . . . Secondary Targets . | . . . . . Shots Hit Robots 2 | . . . . 2 Core Hits . | . . . . . Critical Kills . | . . . . . Critical Parts Destroyed . | . . . . . Critical Strikes . | . . . . . Melee Attacks . | . . . . . Impact . | . . . . . Slashing . | . . . . . Piercing . | . . . . . Sneak Attacks . | . . . . . Combat Hostiles . | . . . . . Follow-up Attacks . | . . . . . Damage Inflicted 13 | . . . . 13 Guns 13 | . . . . 13 Cannons . | . . . . . Explosions . | . . . . . Melee . | . . . . . Ramming . | . . . . . Kinetic 13 | . . . . 13 Thermal . | . . . . . Explosive . | . . . . . Electromagnetic . | . . . . . Impact . | . . . . . Slashing . | . . . . . Piercing . | . . . . . Highest Corruption . | . . . . . Average Corruption . | . . . . . Corruption Purged . | . . . . . Corruption Blocked . | . . . . . Overload Shots . | . . . . . Overflow Damage . | . . . . . Projectiles . | . . . . . Explosions . | . . . . . Melee . | . . . . . Knockbacks . | . . . . . Impact . | . . . . . Kinetic . | . . . . . Secondary . | . . . . . Self-Inflicted Damage . | . . . . . Shots . | . . . . . Rammed . | . . . . . Targets Rammed . | . . . . . Kicked . | . . . . . Crushed . | . . . . . Highest Temperature 11 | . 1 . . 11 Average Temperature 6 | . 1 . . 9 Received Heat Transfer 6 | . 6 . . . Siege Activations . | . . . . . Martial Activations . | . . . . . Shielding Activations . | . . . . . Robots Disrupted . | . . . . . Combat Hostiles . | . . . . . Robots Corrupted . | . . . . . Combat Hostiles . | . . . . . Parts Fried . | . . . . . Impact Corruptions . | . . . . . Robots Melted . | . . . . . Combat Hostiles . | . . . . . Parts Melted . | . . . . . Heat Transferred . | . . . . . Parts Sabotaged . | . . . . . Parts Stolen . | . . . . . Parts Stripped . | . . . . . Power Chain Reactions . | . . . . . Alert | -11 -10 -10 -9 -9 ------- Run | Yrd Mat Min Mat Min Maximum Alert Level . | . . . . . Low Security (%) 100 | 100 100 100 100 100 Level 1 . | . . . . . Level 2 . | . . . . . Level 3 . | . . . . . Level 4 . | . . . . . Level 5 . | . . . . . High Security . | . . . . . Max Security . | . . . . . Peak Influence 60 | . . . 45 60 Initial 17 | . . . . 17 Average 12 | . . . 9 19 Influence Increases 219 | . . . 54 165 Successful Hack 9 | . . . 9 . Lose Combat Pursuer 210 | . . . 45 165 Influence Decreases 174 | . . . 9 165 Entered New Map 28 | . . . . 28 Time Decay 96 | . . . 9 87 Lost Ally 50 | . . . . 50 Squads Dispatched 2 | . 1 . 1 . Investigation 1 | . . . 1 . Extermination . | . . . . . Reinforcement 1 | . 1 . . . Assault . | . . . . . Garrison . | . . . . . Intercept . | . . . . . Searches Triggered . | . . . . . Construction Impeded . | . . . . . Haulers Reinforced . | . . . . . Active Scanning Responses . | . . . . . Cargo Convoy Interrupts . | . . . . . Stealth | -11 -10 -10 -9 -9 --------- Run | Yrd Mat Min Mat Min Distress Signals 2 | . 1 . 1 . Communications Jammed . | . . . . . Distress Signals . | . . . . . Times Spotted 49 | . 7 2 8 32 Peak Tracking Total 20 | . 5 2 6 20 Tactical Retreats 7 | . . . 1 6 Traps | -11 -10 -10 -9 -9 ------- Run | Yrd Mat Min Mat Min Traps Triggered 2 | . 1 . 1 . Indirectly . | . . . . . Trap Hack Attempts . | . . . . . Triggered . | . . . . . Disarmed . | . . . . . Reprogrammed . | . . . . . Reused . | . . . . . Traps Extracted . | . . . . . Installed . | . . . . . Triggered . | . . . . . Machines | -11 -10 -10 -9 -9 ---------- Run | Yrd Mat Min Mat Min Machines Disabled . | . . . . . Max in Single Turn . | . . . . . Machines Repaired . | . . . . . Machines Dismantled . | . . . . . Machines Sabotaged . | . . . . . Overloaded Fab Kills . | . . . . . Hacking | -11 -10 -10 -9 -9 --------- Run | Yrd Mat Min Mat Min Machines Accessed 1 | . . . 1 . Terminals 1 | . . . 1 . Fabricators . | . . . . . Repair Stations . | . . . . . Recycling Units . | . . . . . Scanalyzers . | . . . . . Garrison Access . | . . . . . Total Hacks 3 | . . . 3 . Successful 3 | . . . 3 . Failed . | . . . . . Catastrophic . | . . . . . Database Lockouts . | . . . . . Manual 3 | . . . 3 . Terminals 3 | . . . 3 . Fabricators . | . . . . . Repair Stations . | . . . . . Recycling Units . | . . . . . Scanalyzers . | . . . . . Garrison Access . | . . . . . Terminal Hacks 2 | . . . 2 . Record 1 | . . . 1 . Branch Access Points 1 | . . . 1 . Fabricator Hacks . | . . . . . Repair Station Hacks . | . . . . . Recycling Unit Hacks . | . . . . . Scanalyzer . | . . . . . Garrison Access Hacks . | . . . . . Unauthorized Hacks 1 | . . . 1 . Terminals 1 | . . . 1 . Botnet 1 | . . . 1 . Fabricators . | . . . . . Repair Stations . | . . . . . Recycling Units . | . . . . . Scanalyzers . | . . . . . Garrison Access . | . . . . . Data Cores Recovered . | . . . . . Used . | . . . . . Hacking Detections 1 | . . . 1 . Full Trace Events 1 | . . . 1 . Feedback Events . | . . . . . Feedback Blocked . | . . . . . Robot Schematics Acquired . | . . . . . Robots Built . | . . . . . Authchips . | . . . . . Time . | . . . . . Total Robot Build Rating . | . . . . . Part Schematics Acquired . | . . . . . Parts Built . | . . . . . Authchips . | . . . . . Time . | . . . . . Total Part Build Rating . | . . . . . Part Studies Acquired . | . . . . . Parts Repaired . | . . . . . Time . | . . . . . Parts Recycled . | . . . . . Recycled Matter . | . . . . . Retrieved Matter . | . . . . . Retrieved Components . | . . . . . Parts Scanalyzed . | . . . . . Part Schematics Acquired . | . . . . . Parts Damaged . | . . . . . Bothacking | -11 -10 -10 -9 -9 ------------ Run | Yrd Mat Min Mat Min Used RIF Installer . | . . . . . Robots Hacked 2 | . 1 . 1 . Non-combat 1 | . 1 . . . Combat 1 | . . . 1 . Robot Hacks Applied 2 | . 1 . 1 . map_walls 1 | . 1 . . . find_shortcuts 1 | . . . 1 . Relay Couplers Released . | . . . . . Fabnet Peak Effective % . | . . . . . Robots Rewired . | . . . . . Allies Hacked . | . . . . . Hacks Repelled . | . . . . . Allies | -11 -10 -10 -9 -9 -------- Run | Yrd Mat Min Mat Min Total Allies 3 | . . . . 3 Largest Group 3 | . . . . 3 Highest-Rated Group 40 | . . . . 40 Highest-Rated Ally 16 | . . . . 16 Total Orders . | . . . . . Ally Attacks 5 | . . . . 5 Total Damage 40 | . . . . 40 Kills 1 | . . . . 1 Allies Corrupted . | . . . . . Allies Melted . | . . . . . Intel | -11 -10 -10 -9 -9 ------- Run | Yrd Mat Min Mat Min Active Infowar (turns) 92 | . 47 45 . . Terrain 92 | . 47 45 . . Structural 92 | . 47 45 . . Robot Analysis Total 2 | . 1 . 1 . Derelict Logs Recovered 3 | . . 1 . 2 Drone Launches . | . . . . . Drone Recoveries . | . . . . . Exploration | -11 -10 -10 -9 -9 ------------- Run | Yrd Mat Min Mat Min Turns Passed 542 | 9 118 46 56 313 Spaces Moved 1095 | 18 153 54 130 740 Core 351 | 18 99 4 57 173 Treads . | . . . . . Legs . | . . . . . Wheels 104 | . 54 50 . . Hover . | . . . . . Flight 640 | . . . 73 567 Fastest Speed 37 | 50 50 50 37 37 Average Speed 46 | 50 60 77 42 41 Slowest Speed 80 | 50 80 80 50 50 Overloaded Moves . | . . . . . Propulsion Burnouts . | . . . . . Robots Hopped 13 | . . . 2 11 Potential Cave-ins . | . . . . . Cave-ins Triggered . | . . . . . Exploration Rate (%) 31 | 3 27 15 18 92 Regions Visited 4 Branch Regions 2 Pre-discovered Areas 1 | . . . . 1 Known Exits Taken 1 | . . . 1 . Unknown Exits Taken 3 | 1 1 1 . . Scrap Searched 1 | . . . . 1 Spaces Dug . | . . . . . Terrain Destroyed . | . . . . . Melee . | . . . . . Projectile . | . . . . . AOE . | . . . . . Terrain Rammed . | . . . . . Walls Destroyed . | . . . . . Machines Disabled . | . . . . . Actions | -11 -10 -10 -9 -9 --------- Run | Yrd Mat Min Mat Min Total 1114 | 17 178 57 127 735 Wait 34 | . 26 4 . 4 Move 1066 | 17 152 53 125 719 Hop 12 | . . . 2 10 Pick Up . | . . . . . Fast Attach . | . . . . . Attach . | . . . . . Detach . | . . . . . Swap . | . . . . . Drop . | . . . . . Fire 2 | . . . . 2 Melee . | . . . . . Ram . | . . . . . Kick . | . . . . . Crush . | . . . . . Escape Stasis . | . . . . . Rewire . | . . . . . Trap . | . . . . . Miscellaneous . | . . . . . Route ------- -11/Scrapyard -10/Materials (discovered 3 exits: *Mat / [*Min] / [Sub]) -10/Mines -9/Materials (discovered 4 exits: *Mat / *Min x2 / Sto) -9/Mines (discovered 2 exits: *Mat x2) History --------- Turn | Location | Event 5 | -11/Scrapyard | Discovered new exit (range 12) 10 | -11/Scrapyard | Entered Materials 11 | -10/Materials | Met a group of wandering Federalists 73 | -10/Materials | Discovered new exit (range 16) 88 | -10/Materials | Discovered new exit (range 9) 99 | -10/Materials | Discovered new exit (range 13) 128 | -10/Materials | Entered Mines 128 | -10/Mines | Accompanied by 1 ally 133 | -10/Mines | Lost 3 allies 146 | -10/Mines | Discovered new exit (range 13) 148 | -10/Mines | Received a Rocket Launcher from a helpful Derelict 154 | -10/Mines | Learned 2 Materials zone layouts 174 | -10/Mines | Entered Materials 175 | -9/Materials | Identified exit to Materials 178 | -9/Materials | Identified exit to Mines 178 | -9/Materials | Identified exit to Storage 230 | -9/Materials | Entered Mines 240 | -9/Mines | Found a damaged Exp. Sensor Array with a note attached 254 | -9/Mines | Met a Derelict bent on vengeance 267 | -9/Mines | Assembled infested the area 272 | -9/Mines | Assisted by a Guerilla fighting off Assembled 278 | -9/Mines | Learned Materials stockpile data 290 | -9/Mines | Discovered exit to Materials (range 12) 372 | -9/Mines | Discovered exit to Materials (range 7) 375 | -9/Mines | Assisted by bots powering up and referring to "LRC-V3" 462 | -9/Mines | Core integrity fell below 50% 474 | -9/Mines | Lost 3 allies 489 | -9/Mines | Lost 3 parts (1p1n1w) 543 | -9/Mines | Self-destructed Last Messages --------------- 00347_ K-01 Serf collects debris. 00372_ EXIT=FOUND: MATERIALS 00375_ Trooper 2a: "Hello LRC-V3. What is your command?" 00375_ Mercenary 2a: "Hello LRC-V3. What is your command?" 00375_ Trooper 2b: "Hello LRC-V3. What is your command?" 00378_ as-64325 destroyed. 00384_ K-01 Serf collects debris. 00443_ Trooper 2b destroyed. 00443_ Trooper 2a destroyed. 00443_ Mercenary 2a destroyed. 00443_ Acquired 9 Protomatter. 00443_ K-01 Serf collects debris. 00443_ Acquired 1 matter. 00446_ K-01 Serf collects debris. 00456_ Lgt. Ion Engine destroyed. 00456_ Flight Unit destroyed. 00458_ Lgt. Assault Rifle destroyed. 00458_ Lost control of S-10 Pest. 00474_ C-30 ARC bursts open, deploying its payload. 00474_ G-34 Mercenary unfolds itself. Map ----- +----------------------------------------------------+ | # ##??????? ##????### #?# #????? | | ##?????? ##??## ### #????? | | #??????? ##?? ##????? | | #????????# #?? ##?????? | | #???????## #??# #??????? | | #??????## #????# #??????? | | ####?????## #?????# ## ##??????? | | ##???## ##????# #?## ##??????? | | #?### ###### ##?# ##?????? | | ### #?## ##????? | | ### """ % #### #????? | | ### """ ######## ## ### #????? | | #?# """ ##?????## ! ###?## ##????? | | #?# ######### ##????# ##?????? | | #?## ## #?????# ##??????? | | #??### ### ######## ##?????####???????? | | #????## ##?# #??????## g #?????????????????? | | ##?????####??# #???????## ##?????????????????? | | ##????????????# #???????##b ##??????????????????? | | ######????????# #??????## ##???????????????????? | | #????????# #?????## #????????????????????? | | #????????# #????## #????????????????????? | | ###% #????????# #???## #????????????????????? | | ??# #????##### #???# ##????????????????????? | | ??# # ???# #???# #?????????????????????? | | ??#% #?#??# #####???# @##????????????????????? | | ??# #????# #???????# ##???????????????????? | | ??# %###### ##??????# ##??????????????????? | | ??# #??????# ##?????????????????? | | ??# ### ### #??????##### #?????????????????? | | ??# ?# #?? #??????????## ##??????######????? | | ??# #? ?? #???????????# #???#### ##???? | | ?? ### ##? ???????????## #??## #???? | | ? #?# #?? ????????????## #### #???? | | ? #?? "????????????# ## # #???? | | ##?###?? "????????????# ##### ##???? | | #???????? "%????????????# #???###????? | | %?????????? "????????????# ##??????????? | | %?????????? ??????????# ######???????????? | | ??????????###??????????# #????????????????? | | ????????????????????????## ##????????????????? | | ##?????????????????????????####?????????????????? | | ????????????????????????????????????????????????? | | | | | | | | | | | | | | | +----------------------------------------------------+ Best States ------------- Heat Dissipation 28 Energy Generation 15 Energy Capacity 100 Matter Stores 100 Matter Capacity 100 Sight Range 16 Terrain Scan Range 14 Terrain Scan Density 85 Evasion (%) 62 Item Schematics ----------------- None Robot Schematics ------------------ None Fabricated ------------ Nothing Repaired ---------- Nothing Studied --------- None Alien Tech Used ----------------- None Achievements -------------- None Challenges ------------ None Polymind | -11 -10 -10 -9 -9 ---------- Run | Yrd Mat Min Mat Min Hosts 2 | . 1 . 1 . Combat Hostiles 1 | . . . 1 . Allies . | . . . . . Unique Host Classes 2 | . 1 . 1 . Average Host Suspicion 75 | . 99 12 100 79 Unsuspicious Activity . | . . . . . Returns to Shadow . | . . . . . Fuzzy Dispatches . | . . . . . Protomatter Created 124 | . 21 9 . 94 Used 11 | . 5 . 6 . Decayed 15 | . 10 . . 5 Highest Spend 6 | . 5 . 6 . Game ------ Seed LaserHybridStick Manual? 0 Play Time 00:09:40 Cumulative 52.0 hours Start 2026.02.25 @ 18:20:28 End 2026.02.25 @ 18:26:56 Sessions 1 Manual Loads 0 Difficulty Rogue Special Mode Winter2022/Polymind Game No. 90 Rogue 90 Adventurer 0 Explorer 0 Win Type - Total 0 Types 0/0/0/0/0/0/0/0/0/0 Lore% 32 Gallery% 37 Achievement% 29 Wizard Run 0 Options --------- Layout 0 ASCII 1 Keyboard 1 Movement Numpad Keybinds 0 Fullscreen 1 Font 18/VGA_Max Map View 76x50 Zoom Use 0% Tactical HUD 1 Map Filters NONE Filters NONE Steam 1 RUN: 7bb37a62-0aa2-4d13-bd29-9a63f0d0c218